Cogmind - Beta 16 @@@ ROGUE MODE // 2025.12.28 @ 07:26:18 Player: Random Result: Destroyed by S-10 Pest with Light Assault Rifle Performance ------------- Evolutions (1) 500 Regions Visited (3) 600 Robots Destroyed (49) 245 Value Destroyed (1610) 1610 Prototype IDs (1) 20 Alien Tech Used (0) 0 Bonus (0) 0 TOTAL SCORE: 2975 Bonus ------- None Cogmind --------- Core Integrity 0/400 Matter 290/300 Energy 385/400 System Corruption 0% Temperature Cool (76) Movement Treading (160) Location -9/Storage Parts ------- > --- POWER (2) -------- Ion Engine Ion Engine > --- PROPULSION (2) --- Light Treads Light Treads > --- UTILITY (2) ------ Medium Storage Unit Improved Targeting Computer > --- WEAPON (3) ------- Particle Cannon Ion Burst Cannon Maul > --- INVENTORY (10) --- Aluminum Leg Aluminum Leg Seismic Detector Hardened Medium Armor Plating Drone Bay (2/2) Drone Bay (2/2) Drone Bay (2/2) Drone Bay (2/2) Small Laser Mining Claw Peak State ------------ > --- POWER ------------ Ion Engine Ion Engine > --- PROPULSION ------- Light Treads Light Treads > --- UTILITY ---------- Medium Storage Unit Trap Scanner > --- WEAPON ----------- Particle Cannon Ion Burst Cannon Maul > --- INVENTORY -------- Aluminum Leg Aluminum Leg Seismic Detector Improved Targeting Computer Hardened Medium Armor Plating Small Laser Mining Claw [Rating: 19] Favorites ----------- Power Improved Ion Engine Engine Improved Ion Engine Propulsion Light Treads Treads Light Treads Leg Aluminum Leg Flight Unit Cesium-ion Thruster Utility Medium Storage Unit Device Sensor Array Storage Medium Storage Unit Processor Improved Targeting Computer Weapon Heavy Assault Rifle Energy Gun Beam Rifle Energy Cannon Ion Burst Cannon Ballistic Gun Heavy Assault Rifle Impact Weapon Maul Slashing Weapon Mining Claw Build | -11 -10 -9 -9 ------- Run | Yrd Mat Mat Sto Slots Evolved 2 | . . 2 . Power 1 | . . 1 . Propulsion . | . . . . Utility . | . . . . Weapon 1 | . . 1 . Parts Attached 41 | 6 2 21 12 Power 9 | 1 . 5 3 Engine 9 | 1 . 5 3 Core . | . . . . Reactor . | . . . . Propulsion 13 | 2 . 6 5 Treads 7 | 2 . 1 4 Leg 4 | . . 3 1 Wheel . | . . . . Hover . | . . . . Flight 2 | . . 2 . Utility 5 | 1 2 . 2 Device 2 | . 1 . 1 Storage 2 | 1 1 . . Processor 1 | . . . 1 Hackware . | . . . . Protection . | . . . . Artifact . | . . . . Weapon 14 | 2 . 10 2 Energy Gun 1 | . . 1 . Energy Cannon 2 | . . . 2 Ballistic Gun 9 | 2 . 7 . Ballistic Cannon . | . . . . Launcher . | . . . . Special Weapon . | . . . . Impact Weapon 1 | . . 1 . Slashing Weapon 1 | . . 1 . Piercing Weapon . | . . . . Special Melee Weapon . | . . . . Unidentified Prototypes 1 | . . . 1 Parts Lost 5 | . . 2 3 Power 2 | . . 1 1 Propulsion 1 | . . . 1 Utility 1 | . . . 1 Weapon 1 | . . 1 . Highest Loss Streak 2 | . . 2 2 To Critical Strikes . | . . . . Average Backups 6 | 4 7 7 5 Power . | . 1 . . Propulsion 2 | 2 4 2 1 Utility 2 | . 1 3 2 Weapon 1 | . 1 1 1 Tool/Special . | . . . . Unused Backups 8 | . . 2 6 Power . | . . . . Propulsion 4 | . . 2 2 Utility 3 | . . . 3 Weapon 1 | . . . 1 Tool/Special . | . . . . Average Slot Usage (%) 97 | . 99 97 96 Engine 19 | . 14 21 20 Treads 15 | . 28 11 13 Leg 7 | . . 10 8 Device 10 | . 13 11 9 Storage 11 | . 14 11 11 Energy Cannon 5 | . . . 15 Ballistic Gun 21 | . 28 29 9 Impact Weapon 3 | . . 1 8 Peak Build Rating 19 | 6 7 16 19 Average Rating 12 | 5 6 13 16 On Entrance 7 | . 6 7 16 Avg Prop Armor Cover (%) . | . . . . Naked Turns . | . . . . Heaviest Build 37 | 11 17 34 37 Greatest Support 40 | 40 40 40 40 Greatest Overweight (x) 3 | . . 1 3 Average Overweight (x) . | . . . . Largest Inventory Capacity 10 | 8 10 10 10 Average Capacity 9 | 7 8 10 10 Most Carried 10 | 7 8 10 10 Average Carried 6 | 5 7 7 5 Final Capacity 10 | 8 10 10 10 Final Carried 10 | 7 7 7 10 Class Distribution -------------------- 55% | Mutant 20% | Scavenger-Skirmisher 18% | Skirmisher 4% | Scavenger-Mutant Dominant Class ---------------- Mutant | -10/Materials Skirmisher | -9/Materials Mutant | -9/Storage Resources | -11 -10 -9 -9 ----------- Run | Yrd Mat Mat Sto Matter Collected 1130 | 272 116 577 165 Remotely . | . . . . Salvage Created 1752 | 11 296 681 764 Parts 105 | 3 16 44 42 Haulers Intercepted . | . . . . Recyclers Shooed 1 | . 1 . . Parts Field Recycled . | . . . . Retrieved Matter . | . . . . Parts Self-Destructed . | . . . . Prevented . | . . . . Parts Restored . | . . . . Kills | -11 -10 -9 -9 ------- Run | Yrd Mat Mat Sto Combat Hostiles Destroyed 41 | . 5 17 19 Guns 25 | . 5 17 3 Cannons 16 | . . . 16 Classes Destroyed 10 | 1 3 3 3 Worker 1 | . . . 1 Tunneler 1 | 1 . . . Recycler 1 | . 1 . . Watcher 5 | . 1 2 2 Swarmer 6 | . . 6 . Grunt 24 | . 5 5 14 Brawler 1 | . . . 1 Duelist 1 | . . 1 . Protector 1 | . . . 1 Sentry 8 | . . 5 3 Best Kill Streak 6 | 1 2 6 5 Combat Bots Only 6 | . 2 6 4 Max Kills in Single Turn 2 | 1 1 1 2 Gunslinging . | . . . . Exploded . | . . . . Melee . | . . . . Uniques/NPCs Destroyed . | . . . . Combat | -11 -10 -9 -9 -------- Run | Yrd Mat Mat Sto Hostile Shots Fired 248 | . 36 121 91 Missed 67 | . 10 38 19 Hits 181 | . 26 83 72 Melee 4 | . . 4 . Projectile 177 | . 26 79 72 Critical Strikes 5 | . . 3 2 Damage Taken 2410 | . 329 1077 1004 Core 448 | . 48 191 209 Absorbed by Shields . | . . . . Regen/Repaired (Parts) 19 | . . . 19 Core Remaining (%) 90 | 100 80 . . Volleys Fired 108 | 3 24 46 35 Largest 3 | 2 2 3 3 Hottest 168 | 40 40 102 168 Shots Fired 243 | 6 48 120 69 Gun 194 | 6 48 120 20 Cannon 49 | . . . 49 Launcher . | . . . . Special . | . . . . Kinetic 192 | 6 48 118 20 Thermal 51 | . . 2 49 Explosive . | . . . . Electromagnetic . | . . . . Robot Hit Streak 17 | 5 14 17 10 Robot Miss Streak 4 | 1 2 4 4 Penetration Max . | . . . . Secondary Targets 1 | . 1 . . Max Gunslinging Chain 1 | . 1 . . Shots Hit Robots 161 | 5 37 77 42 Core Hits 78 | 2 17 32 27 Critical Kills 2 | . . 2 . Critical Parts Destroyed 1 | . . 1 . Critical Strikes 4 | . . 4 . Destroy 4 | . . 4 . Melee Attacks . | . . . . Impact . | . . . . Slashing . | . . . . Piercing . | . . . . Sneak Attacks . | . . . . Combat Hostiles . | . . . . Follow-up Attacks . | . . . . Damage Inflicted 2711 | 44 370 960 1337 Guns 1541 | 44 370 956 171 Cannons 1166 | . . . 1166 Explosions . | . . . . Melee . | . . . . Ramming 4 | . . 4 . Kinetic 1527 | 44 370 942 171 Thermal 1180 | . . 14 1166 Explosive . | . . . . Electromagnetic . | . . . . Impact . | . . . . Slashing . | . . . . Piercing . | . . . . Highest Corruption . | . . . . Average Corruption . | . . . . Corruption Purged . | . . . . Corruption Blocked . | . . . . Overload Shots . | . . . . Overflow Damage 10 | . . . 10 Projectiles 10 | . . . 10 Explosions . | . . . . Melee . | . . . . Knockbacks . | . . . . Impact . | . . . . Kinetic . | . . . . Secondary . | . . . . Self-Inflicted Damage . | . . . . Shots . | . . . . Rammed . | . . . . Targets Rammed 1 | . . 1 . Kicked 1 | . . 1 . Crushed . | . . . . Highest Temperature 442 | . 12 111 442 Average Temperature 90 | . 7 41 125 Received Heat Transfer 1002 | . 168 306 528 Effects 7 | . . . 7 Shutdowns 2 | . . . 2 Energy Bleed 3 | . . . 3 Interference 2 | . . . 2 Siege Activations . | . . . . Martial Activations . | . . . . Shielding Activations . | . . . . Robots Disrupted . | . . . . Combat Hostiles . | . . . . Robots Corrupted . | . . . . Combat Hostiles . | . . . . Parts Fried . | . . . . Impact Corruptions . | . . . . Robots Melted . | . . . . Combat Hostiles . | . . . . Parts Melted 3 | . . . 3 Heat Transferred 1495 | . . 37 1458 Parts Sabotaged . | . . . . Parts Stolen . | . . . . Parts Stripped . | . . . . Power Chain Reactions . | . . . . Alert | -11 -10 -9 -9 ------- Run | Yrd Mat Mat Sto Maximum Alert Level 1 | . . . 1 Low Security (%) 76 | 100 100 100 36 Level 1 23 | . . . 63 Level 2 . | . . . . Level 3 . | . . . . Level 4 . | . . . . Level 5 . | . . . . High Security . | . . . . Max Security . | . . . . Peak Influence 391 | 5 60 185 391 Initial 64 | . . . 64 Average 103 | . 11 65 212 Influence Increases 1291 | 5 134 477 675 Destroy 0b10 Robot/C 800 | . 100 340 360 Destroy 0b10 Robot/NC 45 | 5 10 10 20 Destroy Leader 190 | . 22 94 74 Successful Hack 10 | . 2 1 7 Disable Machine 30 | . . . 30 Anti-Garrison Action 150 | . . . 150 Destroy Structure 6 | . . 2 4 Lose Combat Pursuer 60 | . . 30 30 Influence Decreases 1005 | 5 134 324 542 Entered New Map 89 | . . . 89 Time Decay 866 | 5 134 304 423 Lost Part 50 | . . 20 30 Squads Dispatched 6 | . 2 1 3 Investigation 2 | . 1 1 . Extermination . | . . . . Reinforcement 2 | . 1 . 1 Assault 2 | . . . 2 Garrison . | . . . . Intercept . | . . . . Searches Triggered . | . . . . Construction Impeded . | . . . . Haulers Reinforced . | . . . . Active Scanning Responses . | . . . . Cargo Convoy Interrupts . | . . . . Stealth | -11 -10 -9 -9 --------- Run | Yrd Mat Mat Sto Distress Signals 3 | . . 2 1 Communications Jammed . | . . . . Distress Signals . | . . . . Times Spotted 63 | . 11 21 31 Peak Tracking Total 7 | . 3 6 7 Tactical Retreats 4 | . . 2 2 Traps | -11 -10 -9 -9 ------- Run | Yrd Mat Mat Sto Traps Triggered 3 | . 2 . 1 Indirectly . | . . . . Trap Hack Attempts . | . . . . Triggered . | . . . . Disarmed . | . . . . Reprogrammed . | . . . . Reused . | . . . . Traps Extracted . | . . . . Installed . | . . . . Triggered . | . . . . Machines | -11 -10 -9 -9 ---------- Run | Yrd Mat Mat Sto Machines Disabled 3 | . . . 3 Max in Single Turn 1 | . . . 1 Garrison Access 1 | . . . 1 Machines Repaired . | . . . . Machines Dismantled . | . . . . Machines Sabotaged . | . . . . Overloaded Fab Kills . | . . . . Hacking | -11 -10 -9 -9 --------- Run | Yrd Mat Mat Sto Machines Accessed 7 | . 1 1 5 Terminals 6 | . 1 1 4 Fabricators . | . . . . Repair Stations 1 | . . . 1 Recycling Units . | . . . . Scanalyzers . | . . . . Garrison Access . | . . . . Total Hacks 17 | . 5 3 9 Successful 11 | . 2 3 6 Failed 6 | . 3 . 3 Catastrophic . | . . . . Database Lockouts . | . . . . Manual . | . . . . Terminals 15 | . 5 3 7 Fabricators . | . . . . Repair Stations 2 | . . . 2 Recycling Units . | . . . . Scanalyzers . | . . . . Garrison Access . | . . . . Terminal Hacks 9 | . 2 3 4 Record 5 | . 1 2 2 Open Door 2 | . . . 2 Alert Level 2 | . 1 1 . Fabricator Hacks . | . . . . Repair Station Hacks 2 | . . . 2 Scan Component 1 | . . . 1 Repair 1 | . . . 1 Recycling Unit Hacks . | . . . . Scanalyzer . | . . . . Garrison Access Hacks . | . . . . Unauthorized Hacks . | . . . . Terminals . | . . . . Fabricators . | . . . . Repair Stations . | . . . . Recycling Units . | . . . . Scanalyzers . | . . . . Garrison Access . | . . . . Data Cores Recovered . | . . . . Used . | . . . . Hacking Detections 3 | . 1 1 1 Full Trace Events 1 | . . 1 . Feedback Events . | . . . . Feedback Blocked . | . . . . Robot Schematics Acquired . | . . . . Robots Built . | . . . . Authchips . | . . . . Time . | . . . . Total Robot Build Rating . | . . . . Part Schematics Acquired . | . . . . Parts Built . | . . . . Authchips . | . . . . Time . | . . . . Total Part Build Rating . | . . . . Part Studies Acquired . | . . . . Parts Repaired 1 | . . . 1 Time 26 | . . . 26 Parts Recycled . | . . . . Recycled Matter . | . . . . Retrieved Matter . | . . . . Retrieved Components . | . . . . Parts Scanalyzed . | . . . . Part Schematics Acquired . | . . . . Parts Damaged . | . . . . Bothacking | -11 -10 -9 -9 ------------ Run | Yrd Mat Mat Sto Used RIF Installer . | . . . . Robots Hacked . | . . . . Non-combat . | . . . . Combat . | . . . . Robot Hacks Applied . | . . . . Relay Couplers Released 2 | . . . 2 Machine Destruction 2 | . . . 2 Fabnet Peak Effective % . | . . . . Robots Rewired . | . . . . Allies Hacked . | . . . . Hacks Repelled . | . . . . Allies | -11 -10 -9 -9 -------- Run | Yrd Mat Mat Sto Total Allies . | . . . . Largest Group . | . . . . Highest-Rated Group . | . . . . Highest-Rated Ally . | . . . . Total Orders . | . . . . Ally Attacks . | . . . . Total Damage . | . . . . Kills . | . . . . Allies Corrupted . | . . . . Allies Melted . | . . . . Intel | -11 -10 -9 -9 ------- Run | Yrd Mat Mat Sto Active Infowar (turns) 2773 | . 569 1226 978 Sensors 2271 | . 569 1226 476 Traps 502 | . . . 502 Robot Analysis Total . | . . . . Derelict Logs Recovered . | . . . . Drone Launches . | . . . . Drone Recoveries . | . . . . Exploration | -11 -10 -9 -9 ------------- Run | Yrd Mat Mat Sto Turns Passed 3219 | 235 597 1226 1161 Spaces Moved 1605 | 133 318 582 572 Core 4 | 4 . . . Treads 1133 | 129 318 330 356 Legs 468 | . . 252 216 Wheels . | . . . . Hover . | . . . . Flight . | . . . . Fastest Speed 50 | 50 160 160 160 Average Speed 169 | 156 160 173 172 Slowest Speed 330 | 160 160 240 330 Overloaded Moves . | . . . . Propulsion Burnouts . | . . . . Robots Hopped . | . . . . Potential Cave-ins . | . . . . Cave-ins Triggered . | . . . . Exploration Rate (%) 35 | 7 30 35 71 Regions Visited 3 Branch Regions 1 Pre-discovered Areas . | . . . . Known Exits Taken . | . . . . Unknown Exits Taken 3 | 1 1 1 . Scrap Searched . | . . . . Spaces Dug . | . . . . Terrain Destroyed . | . . . . Melee . | . . . . Projectile . | . . . . AOE . | . . . . Terrain Rammed . | . . . . Walls Destroyed . | . . . . Machines Disabled . | . . . . Actions | -11 -10 -9 -9 --------- Run | Yrd Mat Mat Sto Total 1889 | 154 363 701 671 Wait 47 | . 17 6 24 Move 1602 | 132 317 581 572 Hop . | . . . . Pick Up 52 | 13 2 20 17 Fast Attach 1 | . . 1 . Attach 23 | 6 1 9 7 Detach 1 | . . 1 . Swap 27 | . 1 20 6 Drop 27 | . 1 16 10 Fire 108 | 3 24 46 35 Melee . | . . . . Ram . | . . . . Kick 1 | . . 1 . Crush . | . . . . Escape Stasis . | . . . . Rewire . | . . . . Trap . | . . . . Miscellaneous . | . . . . Route ------- -11/Scrapyard -10/Materials -9/Materials -9/Storage History --------- Turn | Location | Event 29 | -11/Scrapyard | Discovered new exit (range 14) 236 | -11/Scrapyard | Entered Materials 304 | -10/Materials | Build established: Mutant 698 | -10/Materials | Discovered new exit (range 16) 833 | -10/Materials | Entered another Materials area 833 | -9/Materials | Evolved 2 slots: Power x1, Weapon x1 877 | -9/Materials | Discovered new exit (range 15) 1148 | -9/Materials | Build established: Skirmisher 1988 | -9/Materials | Build established: Scavenger-Skirmisher 2059 | -9/Materials | Entered Storage 2122 | -9/Storage | Repaired Lgt. Armor Plating? 2233 | -9/Storage | Core integrity fell below 50% 2613 | -9/Storage | Core integrity fell below 20% 2792 | -9/Storage | Build established: Mutant 3220 | -9/Storage | Destroyed by S-10 Pest with Light Assault Rifle Last Messages --------------- 02929_ Recycling unit begins recycling process. 02931_ R-06 Scavenger inserts Lgt. Treads into recycling unit. 02935_ K-01 Serf collects debris. 02943_ K-01 Serf cleans the Transfer Shaft. 03040_ Terminal unresponsive. 03126_ K-01 Serf cleans the Compression Vault. 03148_ Critical hit (Burn: +37). 03149_ Overheating: Energy bleed (-79). 03149_ Y-45 Defender destroyed. 03152_ Power failure, Ion Engine shutdown. 03153_ K-01 Serf cleans the Compression Vault. 03157_ K-01 Serf collects debris. 03167_ Acquired Imp. Targeting Computer. 03170_ Dropped Trap Scanner. 03191_ Connecting with Door Terminal... >>Open(Door) Sealed Heavy Doors opened. 03196_ Acquired Drone Bay. Map ----- +----------------------------------------------------+ | ???????????????????????? | | ^^ ???????????????????????? | | ##########?????????????????????????? | | ???????????????????????????????????? | | ???????????????????????????????????? | | ???????????????????????????????????? | | ???????????????????????????????????? | | ##?????????????????????????????????? | | "?????????????????????????????????? | | "?????????????????????????????????? | | "??????????????????????+??????????? | | T#?????????????????????? ??????????? | | ##???????????#?????????? ??????????? | | ???????????? ??????????#s#?????????? | | ###########? ??????????s #????????? | | # ??????????# +????????? | | % # ??????????# #????????? | | / ???????????#as#????????? | | #????????????# #????????? | | """ #???????????? #????????? | | """" #????????????# ######???? | | """ % #????????????# ##! #???? | | """" #????????????# ##! #???? | | %% "% %#?????#####??# ##! #???? | | % #######"T"####k ##! #???? | | ## # @### ##???? | | ## r ; T#???? | | ## # # ##???? | | ######### # """ """ # #####????? | | ????????# ## """ """ # #????????? | | ###?????# ## """ """ # #????????? | | #?????# ## % # #????????? | | " ####### ########+##### #????????? | | " ## + #???# #????????? | | " ## ##### #########?# T????????? | | " ## #???# #?? #?# #??#+#???? | | " ## #??## ## """ "?""""??# #???? | | ## #### # """ T#??????# #???? | | ## + T + """ "#??????# #???? | | ## # ## # ##??????#^#???? | | #####+## ### ## #??????# #???? | | + #?# ################# #???? | | """ ######?# #???? | | """ #??????#####################???? | | """ #??????????????????????????????? | | #??????????????????????????????? | | #####??????????????????????????????? | | ???????????????????????????????????? | | | | | +----------------------------------------------------+ Best States ------------- Heat Dissipation 28 Energy Generation 19 Energy Capacity 430 Matter Stores 300 Matter Capacity 300 Sight Range 16 Robot Scan Range 14 Terrain Scan Density 10 Evasion (%) 40 Targeting Accuracy 6 Recoil Reduction 2 Item Schematics ----------------- None Robot Schematics ------------------ None Fabricated ------------ Nothing Repaired ---------- Lgt. Armor Plating | 78% | -9/Storage Studied --------- None Alien Tech Used ----------------- None Achievements -------------- None Challenges ------------ None Game ------ Seed TransdimensionalFireLaser Manual? 0 Play Time 00:36:25 Cumulative 1.6 hours Start 2025.12.27 @ 16:56:56 End 2025.12.28 @ 07:26:18 Sessions 3 Manual Loads 0 Difficulty Rogue Special Mode None Game No. 3 Rogue 3 Adventurer 0 Explorer 0 Win Type - Total 0 Types 0/0/0/0/0/0/0/0/0/0 Lore% 1 Gallery% 5 Achievement% 3 Wizard Run 0 Options --------- Layout 2 ASCII 0 Keyboard 0 Movement Mouse Keybinds 0 Fullscreen 2 Font 32/SmallcapsGlow Map View 50x49 Zoom Use 0% Tactical HUD 1 Map Filters NONE Filters NONE Steam 1 RUN: 5a95cafd-27d7-42e2-a5d6-44fe225b874e